Cogmind - Beta 9.6 @@@ ROGUE MODE // 2020.08.17 @ 20:55:03 Player: Vladmirangel Result: Destroyed by G-67 Veteran with Electrolaser Performance ------------- Evolutions (7) 3500 Regions Visited (15) 3000 Robots Destroyed (118) 590 Value Destroyed (3982) 3982 Prototype IDs (8) 160 Alien Tech Used (0) 0 Bonus (134) 134 TOTAL SCORE: 11366 Bonus ------- Follower Combat Kills 134 Cogmind --------- Core Integrity 0/1300 Matter 270/300 Energy 99/325 System Corruption 7% Temperature Cool (15) Movement Flying (37) Location -3/Research Parts ------- > --- POWER (3) -------- Reinforced Antimatter Reactor > --- PROPULSION (6) --- Q-thruster Impulse Thruster Array > --- UTILITY (10) ----- Enhanced Optical Array Experimental Signal Interpreter Improved Terrain Scan Processor > --- WEAPON (2) ------- (None) > --- INVENTORY (4) ---- Field Propulsion Drive Q-thruster Peak State ------------ > --- POWER ------------ Micro Fission Core Heavy Antimatter Reactor > --- PROPULSION ------- Biomechanical Wings Biomechanical Wings Biomechanical Wings Field Propulsion Drive Field Propulsion Array > --- UTILITY ---------- Improved Thermal Generator Long-range Sensor Array Experimental Signal Interpreter Improved Terrain Scan Processor Advanced Transmission Jammer Advanced ECM Suite Reaction Control System Improved Propulsion Shielding Improved Medium Armor Plating > --- WEAPON ----------- Micro-nuke Launcher Force Lance > --- INVENTORY -------- Micro Fission Core Field Propulsion Drive Field Propulsion Drive Advanced Field Recycling Unit [Rating: 112] Favorites ----------- Power Antimatter Reactor Engine Ion Engine Power Core Micro Fission Core Reactor Antimatter Reactor Propulsion Light Treads Treads Light Treads Leg Aluminum Leg Flight Unit Biomechanical Wings Utility Large Storage Unit Device Long-range Sensor Array Storage Large Storage Unit Processor Advanced Targeting Computer Protection Improved Utility Shielding Weapon Magnetic Acceleration Cannon Energy Gun Beam Rifle Energy Cannon Plasma Cannon Ballistic Gun Assault Rifle Ballistic Cannon Magnetic Acceleration Cannon Launcher Micro-nuke Launcher Piercing Weapon Spear Build | -11 -10 -10 -9 -8 -7 -7 -7 -6 -6 -6 -5 -4 -4 -4 -3 ------- Run | Scr Mat Min Mat Mat Fac Was Fac Fac Low Low Fac Fac Ext Cet Res Slots Evolved 14 | . . . 2 2 2 . . 2 . . 2 2 . . 2 Power 2 | . . . . . . . . . . . 1 . . . 1 Propulsion 4 | . . . 2 1 . . . . . . 1 . . . . Utility 8 | . . . . 1 2 . . 2 . . . 2 . . 1 Weapon . | . . . . . . . . . . . . . . . . Parts Attached 180 | 7 3 2 18 29 2 6 1 23 11 3 38 26 1 . 10 Power 19 | 1 1 . 1 2 . . . 1 . 2 5 4 1 . 1 Engine 6 | 1 1 . 1 . . . . . . 1 2 . . . . Core 9 | . . . . 2 . . . . . . 3 3 1 . . Reactor 4 | . . . . . . . . 1 . 1 . 1 . . 1 Propulsion 80 | 3 . 1 11 17 . 4 . 7 2 . 19 10 . . 6 Treads 41 | 2 . . 9 11 . 4 . 7 2 . 6 . . . . Leg 18 | 1 . 1 2 6 . . . . . . 8 . . . . Wheel . | . . . . . . . . . . . . . . . . Hover . | . . . . . . . . . . . . . . . . Flight 21 | . . . . . . . . . . . 5 10 . . 6 Utility 43 | 1 2 . . 6 2 . 1 9 4 . 6 9 . . 3 Device 25 | . . . . 3 . . . 7 3 . 3 7 . . 2 Storage 6 | 1 2 . . 1 1 . 1 . . . . . . . . Processor 6 | . . . . 1 1 . . . . . 2 1 . . 1 Hackware . | . . . . . . . . . . . . . . . . Protection 6 | . . . . 1 . . . 2 1 . 1 1 . . . Artifact . | . . . . . . . . . . . . . . . . Weapon 38 | 2 . 1 6 4 . 2 . 6 5 1 8 3 . . . Energy Gun 12 | 1 . 1 4 1 . 1 . 3 . . 1 . . . . Energy Cannon 4 | . . . . 1 . . . . 1 . 2 . . . . Ballistic Gun 8 | 1 . . 2 2 . . . . 1 1 1 . . . . Ballistic Cannon 9 | . . . . . . 1 . 3 2 . 3 . . . . Launcher 2 | . . . . . . . . . . . . 2 . . . Special Weapon . | . . . . . . . . . . . . . . . . Impact Weapon . | . . . . . . . . . . . . . . . . Slashing Weapon . | . . . . . . . . . . . . . . . . Piercing Weapon 3 | . . . . . . . . . 1 . 1 1 . . . Special Melee Weapon . | . . . . . . . . . . . . . . . . Unidentified Prototypes 8 | . . . 2 . . . . 2 . . . 3 . . 1 Parts Lost 60 | . 1 3 1 8 . . . 1 2 2 16 4 2 . 20 Power 8 | . . . . 1 . . . . . 1 3 . 1 . 2 Propulsion 23 | . . 2 . 5 . . . . 1 . 6 . . . 9 Utility 16 | . . . . . . . . . 1 . 4 3 1 . 7 Weapon 13 | . 1 1 1 2 . . . 1 . 1 3 1 . . 2 Highest Loss Streak 16 | . 1 3 1 4 . . . 1 1 1 4 2 2 . 16 Average Slot Usage (%) 89 | . 92 91 98 99 99 91 84 78 90 93 86 90 86 84 60 Engine 2 | . 13 14 11 3 . . . . . . . . . . . Core 3 | . . . . 5 7 7 7 1 . . 5 10 10 10 6 Reactor 2 | . . . . . . . . 4 6 6 1 . . . . Treads 21 | . 14 13 20 35 38 30 23 25 25 26 15 . . . . Leg 4 | . 14 14 23 9 . . . . . . 2 . . . . Flight 3 | . . . . . . . . . . . 9 26 26 26 17 Device 11 | . . . . 4 . . . 1 18 20 19 25 23 21 16 Storage 16 | . 24 28 22 18 23 23 23 20 20 20 8 . . . . Processor 3 | . . . . . 14 15 15 4 . . 5 10 10 10 9 Protection 3 | . . . . 3 . . . 5 5 6 4 8 5 5 2 Energy Gun 3 | . 10 6 6 6 7 6 7 5 . . . . . . . Energy Cannon 1 | . . . . 2 . . . . 5 . 1 . . . . Ballistic Gun 4 | . 14 14 14 8 7 5 . . . 5 1 . . . . Ballistic Cannon 2 | . . . . . . 1 7 5 4 6 2 . . . . Piercing Weapon 1 | . . . . . . . . . 1 . 2 4 5 5 3 Naked Turns . | . . . . . . . . . . . . . . . . Heaviest Build 141 | 11 49 50 53 63 78 83 83 141 140 101 110 54 52 43 44 Greatest Support 170 | 40 20 20 80 100 100 163 163 163 150 140 170 57 56 56 56 Greatest Overweight (x) 15 | 1 2 15 2 6 . . . 1 . . 4 . . . . Average Overweight (x) . | . 1 2 1 . . . . . . . . . . . . Largest Inventory Capacity 24 | 6 16 16 16 18 24 24 24 24 24 24 24 4 4 4 4 Average Capacity 18 | 5 13 16 16 17 24 24 24 24 24 24 13 4 4 4 4 Most Carried 24 | 5 16 16 16 18 19 24 24 24 24 23 21 4 4 3 4 Average Carried 16 | 3 9 15 14 16 17 22 23 23 21 20 11 3 3 3 3 Final Capacity 24 | 6 16 16 16 18 24 24 24 24 24 24 4 4 4 4 4 Final Carried 24 | 4 16 14 16 18 19 24 24 24 23 20 4 4 3 3 2 Class Distribution -------------------- 52% | Hauler-Mutant 19% | Mutant 11% | Scavenger-Mutant 5% | Ninja 4% | Infiltrator-Ninja 4% | Scavenger-Ninja Dominant Class ---------------- Mutant | -10/Materials Mutant | -10/Mines Mutant | -9/Materials Scavenger-Mutant | -8/Materials Hauler-Mutant | -7/Factory Hauler-Mutant | -7/Waste Hauler-Mutant | -7/Factory Hauler-Mutant | -6/Factory Hauler-Mutant | -6/Lower Caves Hauler-Mutant | -6/Lower Caves Scavenger-Ninja | -5/Factory Infiltrator-Ninja | -4/Factory Ninja | -4/Extension Ninja | -4/Cetus Ninja | -3/Research Resources | -11 -10 -10 -9 -8 -7 -7 -7 -6 -6 -6 -5 -4 -4 -4 -3 ----------- Run | Scr Mat Min Mat Mat Fac Was Fac Fac Low Low Fac Fac Ext Cet Res Matter Collected 3130 | 150 199 10 403 453 . 50 . 363 434 136 468 265 174 . 25 Remotely . | . . . . . . . . . . . . . . . . Salvage Created 4938 | . 338 . 794 1157 . . . 621 518 134 922 160 294 . . Parts 265 | . 23 . 43 64 . . . 35 29 3 45 7 16 . . Haulers Intercepted 3 | . 1 . 2 . . . . . . . . . . . . Recyclers Shooed 4 | . . . 2 2 . . . . . . . . . . . Parts Field Recycled . | . . . . . . . . . . . . . . . . Retrieved Matter . | . . . . . . . . . . . . . . . . Parts Self-Destructed 30 | . . . . . . . . . 21 9 . . . . . Prevented 5 | . . . . . . . . . 4 1 . . . . . Kills | -11 -10 -10 -9 -8 -7 -7 -7 -6 -6 -6 -5 -4 -4 -4 -3 ------- Run | Scr Mat Min Mat Mat Fac Was Fac Fac Low Low Fac Fac Ext Cet Res Combat Hostiles Destroyed 95 | . 8 . 16 21 . . . 12 12 2 19 . 5 . . Melee 3 | . . . . . . . . . 1 . 2 . . . . Guns 51 | . 8 . 16 14 . . . 6 4 2 1 . . . . Cannons 31 | . . . . 6 . . . 5 7 . 13 . . . . AOE 10 | . . . . 1 . . . 1 . . 3 . 5 . . Classes Destroyed 14 | . 3 . 2 5 . . . 3 1 . . . . . . Worker 5 | . . . . 3 . . . . . . 1 1 . . . Builder 7 | . . . . 1 . . . 3 . . . . 3 . . Hauler 3 | . 1 . 2 . . . . . . . . . . . . Recycler 7 | . . . . 2 . . . 1 . . 1 1 2 . . Mechanic 1 | . . . . . . . . 1 . . . . . . . Swarmer 32 | . 3 . 3 5 . . . 4 5 . 7 . 5 . . Grunt 38 | . 5 . 8 10 . . . 3 4 2 6 . . . . Brawler 1 | . . . . 1 . . . . . . . . . . . Duelist 5 | . . . 1 1 . . . . . . 3 . . . . Sentry 12 | . . . 4 3 . . . 3 2 . . . . . . Hunter 1 | . . . . 1 . . . . . . . . . . . Programmer 4 | . . . . . . . . 1 . . 3 . . . . Behemoth 1 | . . . . . . . . 1 . . . . . . . Mutant 1 | . . . . . . . . . 1 . . . . . . Best Kill Streak 9 | . 4 . 4 7 . . . 6 6 2 6 1 9 . . Combat Bots Only 6 | . 4 . 2 5 . . . 5 6 2 5 . 5 . . Max Kills in Single Turn 4 | . 1 . 1 2 . . . 3 1 1 4 1 4 . . Gunslinging . | . . . . . . . . . . . . . . . . Exploded 3 | . . . . 1 . . . 1 . . 3 . 2 . . Melee 1 | . . . . . . . . . 1 . 1 . . . . Uniques/NPCs Destroyed . | . . . . . . . . . . . . . . . . Combat | -11 -10 -10 -9 -8 -7 -7 -7 -6 -6 -6 -5 -4 -4 -4 -3 -------- Run | Scr Mat Min Mat Mat Fac Was Fac Fac Low Low Fac Fac Ext Cet Res Damage Taken 12637 | . 404 323 793 1742 . . . 960 1776 492 2545 897 226 . 2479 Core 2620 | . 112 101 136 217 . . . 215 82 20 177 182 69 . 1309 Absorbed by Shields 294 | . . . . . . . . . 168 . 15 111 . . . Core Remaining (%) 70 | 100 . 14 66 60 . . 100 . . 62 82 . . 78 . Volleys Fired 282 | . 19 . 62 71 . . . 39 31 11 46 . 3 . . Largest 2 | . 2 . 2 2 . . . 2 2 2 2 . 1 . . Hottest 159 | . 60 . 68 84 . . . 129 103 133 159 . 49 . . Shots Fired 531 | . 35 . 122 142 . . . 73 49 22 85 . 3 . . Gun 359 | . 35 . 122 113 . . . 36 23 10 20 . . . . Cannon 169 | . . . . 29 . . . 37 26 12 65 . . . . Launcher 3 | . . . . . . . . . . . . . 3 . . Special . | . . . . . . . . . . . . . . . . Kinetic 332 | . 18 . 96 71 . . . 37 39 21 50 . . . . Thermal 92 | . . . 5 33 . . . 36 . 1 17 . . . . Explosive 3 | . . . . . . . . . . . . . 3 . . Electromagnetic 104 | . 17 . 21 38 . . . . 10 . 18 . . . . Robot Hit Streak 17 | . 8 . 13 17 . . . 9 17 7 16 . 1 . . Robot Miss Streak 10 | . 3 . 2 3 . . . 3 10 2 7 . 1 . . Penetration Max 1 | . . . . . . . . . . 1 1 . . . . Secondary Targets 2 | . 1 . . 1 . . . . . . . . . . . Max Gunslinging Chain 1 | . 1 . . 1 . . . . . . . . . . . Shots Hit Robots 394 | . 26 . 89 101 . . . 46 47 16 63 3 3 . . Core Hits 220 | . 15 . 36 46 . . 1 30 29 11 39 2 11 . . Critical Hits 14 | . . . 1 1 . . . 2 1 2 5 . 2 . . Critical Kills 7 | . . . . . . . . 2 1 1 2 . 1 . . Critical Parts Destroyed 7 | . . . 1 1 . . . . . 1 3 . 1 . . Melee Attacks 54 | . . . . . . . . . 8 . 11 19 2 . 14 Impact . | . . . . . . . . . . . . . . . . Slashing . | . . . . . . . . . . . . . . . . Piercing 54 | . . . . . . . . . 8 . 11 19 2 . 14 Sneak Attacks 3 | . . . . . . . . . . . . 2 1 . . Combat Hostiles . | . . . . . . . . . . . . . . . . Follow-up Attacks . | . . . . . . . . . . . . . . . . Damage Inflicted 9447 | . 342 6 1112 1880 . . 9 1537 948 354 1903 224 1132 . . Guns 3802 | . 342 . 1112 1240 . . . 622 235 69 182 . . . . Cannons 3128 | . . . . 516 . . . 714 557 285 1056 . . . . Explosions 1789 | . . . . 56 . . . 164 . . 582 . 987 . . Melee 581 | . . . . . . . . . 156 . 56 224 145 . . Ramming 147 | . . 6 . 68 . . 9 37 . . 27 . . . . Kinetic 3946 | . 191 . 866 751 . . . 714 642 330 452 . . . . Thermal 2288 | . . . 42 401 . . . 786 . 24 1035 . . . . Explosive 987 | . . . . . . . . . . . . . 987 . . Electromagnetic 1498 | . 151 . 204 660 . . . . 150 . 333 . . . . Impact . | . . . . . . . . . . . . . . . . Slashing . | . . . . . . . . . . . . . . . . Piercing 581 | . . . . . . . . . 156 . 56 224 145 . . Highest Corruption 7 | . 1 1 2 1 . . . . 2 2 7 3 3 3 7 Average Corruption 2 | . 1 1 1 1 . . . . 1 2 4 1 3 3 3 Corruption Purged . | . . . . . . . . . . . . . . . . Effects 60 | . 4 3 2 5 . . . . 13 2 23 1 3 1 3 Message Errors 21 | . 1 . . 1 . . . . 7 . 9 . 1 . 2 Matter Fused 4 | . . . . . . . . . . . 3 . . 1 . Heat Flow Errors 5 | . . . . . . . . . 2 . 2 . 1 . . Energy Discharges 9 | . . 1 . 1 . . . . 3 . 2 . 1 . 1 Data Loss (minor) 10 | . 1 2 . 3 . . . . 1 . 2 1 . . . Data Loss (major) 1 | . . . . . . . . . . . 1 . . . . Targeting Errors 8 | . 1 . 1 . . . . . . 2 4 . . . . Weapon Failures 2 | . 1 . 1 . . . . . . . . . . . . Overload Shots . | . . . . . . . . . . . . . . . . Overflow Damage 311 | . . . . 11 . . . 38 10 8 184 . 60 . . Projectiles 20 | . . . . 11 . . . 1 . 8 . . . . . Explosions 281 | . . . . . . . . 37 . . 184 . 60 . . Melee 10 | . . . . . . . . . 10 . . . . . . Knockbacks 21 | . . . . . . . . 4 4 6 7 . . . . Impact 1 | . . . . . . . . . . . 1 . . . . Kinetic 17 | . . . . . . . . 3 4 4 6 . . . . Secondary 3 | . . . . . . . . 1 . 2 . . . . . Self-Inflicted Damage 193 | . . . . . . . . . . . 193 . . . . Shots 2 | . . . . . . . . . . . 2 . . . . Rammed 17 | . . 1 . 6 . . 1 3 . . 6 . . . . Targets Rammed 20 | . . 1 . 7 . . 1 4 . . 7 . . . . Kicked . | . . . . . . . . . . . . . . . . Crushed 3 | . . . . 1 . . . 1 . . 1 . . . . Highest Temperature 636 | . 18 . 14 54 . . . 636 393 7 147 444 103 . . Average Temperature 165 | . 12 . 6 18 . . . 241 177 6 34 170 29 . . Received Heat Transfer 2373 | . 93 . 222 648 . . . 225 459 216 252 135 27 . 96 Effects 49 | . . . . . . . . 44 4 . . 1 . . . Shutdowns 10 | . . . . . . . . 8 1 . . 1 . . . Interference 9 | . . . . . . . . 7 2 . . . . . . Matter Decay 4 | . . . . . . . . 4 . . . . . . . Short Circuit 5 | . . . . . . . . 5 . . . . . . . Damage (minor) 7 | . . . . . . . . 6 1 . . . . . . Damage (major) 13 | . . . . . . . . 13 . . . . . . . Damage (core) 1 | . . . . . . . . 1 . . . . . . . Siege Activations . | . . . . . . . . . . . . . . . . Robots Corrupted . | . . . . . . . . . . . . . . . . Combat Hostiles . | . . . . . . . . . . . . . . . . Parts Fried 3 | . . . . 2 . . . . . . 1 . . . . Impact Corruptions . | . . . . . . . . . . . . . . . . Robots Melted . | . . . . . . . . . . . . . . . . Combat Hostiles . | . . . . . . . . . . . . . . . . Parts Melted 3 | . . . . 1 . . . 2 . . . . . . . Heat Transferred 3374 | . . . 100 938 . . . 1136 . 50 1150 . . . . Parts Sabotaged . | . . . . . . . . . . . . . . . . Parts Stolen . | . . . . . . . . . . . . . . . . Parts Stripped . | . . . . . . . . . . . . . . . . Power Chain Reactions 2 | . . . . 1 . . . . . . 1 . . . . Missiles Intercepted . | . . . . . . . . . . . . . . . . Alert | -11 -10 -10 -9 -8 -7 -7 -7 -6 -6 -6 -5 -4 -4 -4 -3 ------- Run | Scr Mat Min Mat Mat Fac Was Fac Fac Low Low Fac Fac Ext Cet Res Peak Influence 384 | . 157 68 270 337 116 40 . 271 . . 384 150 197 109 88 Average Influence 119 | . 57 57 134 225 116 22 . 135 . . 179 66 82 109 48 Maximum Alert Level 1 | . . . 1 1 . . . 1 . . 1 . . . . Low Security (%) 74 | 100 100 100 75 30 100 100 100 72 . . 47 100 100 100 100 Level 1 25 | . . . 24 69 . . . 27 . . 52 . . . . Level 2 . | . . . . . . . . . . . . . . . . Level 3 . | . . . . . . . . . . . . . . . . Level 4 . | . . . . . . . . . . . . . . . . Level 5 . | . . . . . . . . . . . . . . . . High Security . | . . . . . . . . . . . . . . . . Max Security . | . . . . . . . . . . . . . . . . Squads Dispatched 16 | . 1 . . 2 . . . 7 . . 3 2 . . 1 Investigation . | . . . . . . . . . . . . . . . . Extermination 5 | . . . . . . . . 1 . . 2 1 . . 1 Reinforcement 8 | . 1 . . 2 . . . 3 . . 1 1 . . . Assault . | . . . . . . . . . . . . . . . . Garrison 3 | . . . . . . . . 3 . . . . . . . Intercept . | . . . . . . . . . . . . . . . . Construction Impeded 2 | . . . . 1 . . . . . . 1 . . . . Haulers Reinforced 1 | . . . . . . . . 1 . . . . . . . Stealth | -11 -10 -10 -9 -8 -7 -7 -7 -6 -6 -6 -5 -4 -4 -4 -3 --------- Run | Scr Mat Min Mat Mat Fac Was Fac Fac Low Low Fac Fac Ext Cet Res Distress Signals 11 | . . . 4 2 . . . 1 . . 3 . . 1 . Communications Jammed . | . . . . . . . . . . . . . . . . Distress Signals . | . . . . . . . . . . . . . . . . Times Spotted 236 | . 14 4 24 33 . . . 24 12 5 33 34 11 4 38 Peak Tracking Total 18 | . 4 2 6 6 . . . 6 7 4 6 16 12 5 18 Tactical Retreats 23 | . . . 1 1 . . . . . 2 5 5 3 . 6 Traps | -11 -10 -10 -9 -8 -7 -7 -7 -6 -6 -6 -5 -4 -4 -4 -3 ------- Run | Scr Mat Min Mat Mat Fac Was Fac Fac Low Low Fac Fac Ext Cet Res Traps Triggered 11 | . 5 . 2 2 1 . . . . . 1 . . . . Indirectly . | . . . . . . . . . . . . . . . . Trap Hack Attempts . | . . . . . . . . . . . . . . . . Triggered . | . . . . . . . . . . . . . . . . Disarmed . | . . . . . . . . . . . . . . . . Reprogrammed . | . . . . . . . . . . . . . . . . Reused . | . . . . . . . . . . . . . . . . Traps Extracted . | . . . . . . . . . . . . . . . . Installed . | . . . . . . . . . . . . . . . . Triggered . | . . . . . . . . . . . . . . . . Machines | -11 -10 -10 -9 -8 -7 -7 -7 -6 -6 -6 -5 -4 -4 -4 -3 ---------- Run | Scr Mat Min Mat Mat Fac Was Fac Fac Low Low Fac Fac Ext Cet Res Machines Disabled 15 | . . 1 . 3 . . . 5 1 . 4 . 1 . . Max in Single Turn 3 | . . . . 1 . . . 3 1 . 2 . 1 . . Machines Sabotaged . | . . . . . . . . . . . . . . . . Garrisons Compromised . | . . . . . . . . . . . . . . . . Overloaded Fab Kills . | . . . . . . . . . . . . . . . . Fab Network Shutdowns . | . . . . . . . . . . . . . . . . Hacking | -11 -10 -10 -9 -8 -7 -7 -7 -6 -6 -6 -5 -4 -4 -4 -3 --------- Run | Scr Mat Min Mat Mat Fac Was Fac Fac Low Low Fac Fac Ext Cet Res Machines Accessed 8 | . 2 . 1 . . . . . 1 . 1 3 . . . Terminals 6 | . 2 . 1 . . . . . 1 . . 2 . . . Fabricators . | . . . . . . . . . . . . . . . . Repair Stations 2 | . . . . . . . . . . . 1 1 . . . Recycling Units . | . . . . . . . . . . . . . . . . Scanalyzers . | . . . . . . . . . . . . . . . . Garrison Access . | . . . . . . . . . . . . . . . . Total Hacks 15 | . 2 . 3 . . . . . 5 . 1 4 . . . Successful 6 | . . . . . . . . . 5 . . 1 . . . Failed 9 | . 2 . 3 . . . . . . . 1 3 . . . Catastrophic 2 | . 1 . 1 . . . . . . . . . . . . Database Lockouts . | . . . . . . . . . . . . . . . . Manual 6 | . 2 . 3 . . . . . . . . 1 . . . Terminals 13 | . 2 . 3 . . . . . 5 . . 3 . . . Fabricators . | . . . . . . . . . . . . . . . . Repair Stations 2 | . . . . . . . . . . . 1 1 . . . Recycling Units . | . . . . . . . . . . . . . . . . Scanalyzers . | . . . . . . . . . . . . . . . . Garrison Access . | . . . . . . . . . . . . . . . . Terminal Hacks 6 | . . . . . . . . . 5 . . 1 . . . Record 5 | . . . . . . . . . 5 . . . . . . Open Door 1 | . . . . . . . . . . . . 1 . . . Fabricator Hacks . | . . . . . . . . . . . . . . . . Repair Station Hacks . | . . . . . . . . . . . . . . . . Recycling Unit Hacks . | . . . . . . . . . . . . . . . . Scanalyzer . | . . . . . . . . . . . . . . . . Garrison Access Hacks . | . . . . . . . . . . . . . . . . Unauthorized Hacks . | . . . . . . . . . . . . . . . . Terminals . | . . . . . . . . . . . . . . . . Fabricators . | . . . . . . . . . . . . . . . . Repair Stations . | . . . . . . . . . . . . . . . . Recycling Units . | . . . . . . . . . . . . . . . . Scanalyzers . | . . . . . . . . . . . . . . . . Garrison Access . | . . . . . . . . . . . . . . . . Data Cores Recovered . | . . . . . . . . . . . . . . . . Used . | . . . . . . . . . . . . . . . . Hacking Detections 8 | . 2 . 1 . . . . . 1 . 1 3 . . . Full Trace Events 1 | . . . . . . . . . 1 . . . . . . Feedback Events . | . . . . . . . . . . . . . . . . Feedback Blocked . | . . . . . . . . . . . . . . . . Robot Schematics Acquired . | . . . . . . . . . . . . . . . . Robots Built . | . . . . . . . . . . . . . . . . Matter . | . . . . . . . . . . . . . . . . Time . | . . . . . . . . . . . . . . . . Total Robot Build Rating . | . . . . . . . . . . . . . . . . Part Schematics Acquired . | . . . . . . . . . . . . . . . . Parts Built . | . . . . . . . . . . . . . . . . Matter . | . . . . . . . . . . . . . . . . Time . | . . . . . . . . . . . . . . . . Total Part Build Rating . | . . . . . . . . . . . . . . . . Parts Repaired . | . . . . . . . . . . . . . . . . Time . | . . . . . . . . . . . . . . . . Parts Recycled . | . . . . . . . . . . . . . . . . Recycled Matter . | . . . . . . . . . . . . . . . . Retrieved Matter . | . . . . . . . . . . . . . . . . Retrieved Components . | . . . . . . . . . . . . . . . . Parts Scanalyzed . | . . . . . . . . . . . . . . . . Part Schematics Acquired . | . . . . . . . . . . . . . . . . Parts Damaged . | . . . . . . . . . . . . . . . . Bothacking | -11 -10 -10 -9 -8 -7 -7 -7 -6 -6 -6 -5 -4 -4 -4 -3 ------------ Run | Scr Mat Min Mat Mat Fac Was Fac Fac Low Low Fac Fac Ext Cet Res Used RIF Installer . | . . . . . . . . . . . . . . . . Robots Hacked . | . . . . . . . . . . . . . . . . Non-combat . | . . . . . . . . . . . . . . . . Combat . | . . . . . . . . . . . . . . . . Robot Hacks Applied . | . . . . . . . . . . . . . . . . Relay Couplers Released . | . . . . . . . . . . . . . . . . Robots Rewired . | . . . . . . . . . . . . . . . . Allies Hacked . | . . . . . . . . . . . . . . . . Hacks Repelled . | . . . . . . . . . . . . . . . . Allies | -11 -10 -10 -9 -8 -7 -7 -7 -6 -6 -6 -5 -4 -4 -4 -3 -------- Run | Scr Mat Min Mat Mat Fac Was Fac Fac Low Low Fac Fac Ext Cet Res Total Allies 21 | . . 1 . . . 20 . . . . . . . . . Largest Group 20 | . . 1 . . . 20 20 20 . . . . . . . Highest-Rated Group 535 | . . 31 . . . 535 535 535 . . . . . . . Highest-Rated Ally 35 | . . 31 . . . 35 35 35 . . . . . . . Total Orders . | . . . . . . . . . . . . . . . . Ally Attacks 60 | . . 11 . . . . . 49 . . . . . . . Total Damage 909 | . . 123 . . . . . 786 . . . . . . . Kills 5 | . . 2 . . . . . 3 . . . . . . . Allies Corrupted . | . . . . . . . . . . . . . . . . Allies Melted . | . . . . . . . . . . . . . . . . Intel | -11 -10 -10 -9 -8 -7 -7 -7 -6 -6 -6 -5 -4 -4 -4 -3 ------- Run | Scr Mat Min Mat Mat Fac Was Fac Fac Low Low Fac Fac Ext Cet Res Robot Analysis Total . | . . . . . . . . . . . . . . . . Derelict Logs Recovered 1 | . . . . . . . . . 1 . . . . . . Drone Launches . | . . . . . . . . . . . . . . . . Drone Recoveries . | . . . . . . . . . . . . . . . . Exploration | -11 -10 -10 -9 -8 -7 -7 -7 -6 -6 -6 -5 -4 -4 -4 -3 ------------- Run | Scr Mat Min Mat Mat Fac Was Fac Fac Low Low Fac Fac Ext Cet Res Turns Passed 12898 | 171 718 472 777 1428 175 698 99 1481 3618 286 1361 749 283 20 562 Spaces Moved 7016 | 109 340 229 302 602 107 418 58 779 1232 152 620 1060 248 71 689 Core 52 | 10 . 1 . . . . . . . . . . . . 41 Treads 4161 | 20 206 225 208 585 107 418 58 779 1232 152 171 . . . . Legs 356 | 79 134 3 94 17 . . . . . . 29 . . . . Wheels . | . . . . . . . . . . . . . . . . Hover . | . . . . . . . . . . . . . . . . Flight 2447 | . . . . . . . . . . . 420 1060 248 71 648 Fastest Speed 28 | 50 150 200 150 160 160 160 160 160 162 165 71 28 28 28 28 Average Speed 122 | 144 180 203 171 167 160 160 160 166 164 165 103 30 28 28 36 Slowest Speed 800 | 160 200 800 200 300 160 160 160 180 165 165 240 71 28 28 50 Overloaded Moves . | . . . . . . . . . . . . . . . . Propulsion Burnouts . | . . . . . . . . . . . . . . . . Robots Hopped 30 | . . . . . . . . . . . 3 7 . . 20 Cave-ins Triggered . | . . . . . . . . . . . . . . . . Exploration Rate (%) 31 | 8 43 37 35 46 3 95 1 23 69 15 13 26 40 23 28 Regions Visited 15 Branch Regions 5 Pre-discovered Areas . | . . . . . . . . . . . . . . . . Known Exits Taken 4 | . . . . . . . . . . . 1 1 1 1 . Unknown Exits Taken 9 | 1 1 1 1 1 . . 1 1 1 1 . . . . . Scrap Searched 2 | . . 1 . . . . . . 1 . . . . . . Spaces Dug 34 | . . . . . . . . . 1 . 6 13 . . 14 Terrain Destroyed 196 | . . . . 5 . . . 41 5 2 73 13 43 . 14 Melee 34 | . . . . . . . . . 1 . 6 13 . . 14 Projectile 24 | . . . . . . . . 9 4 2 9 . . . . AOE 138 | . . . . 5 . . . 32 . . 58 . 43 . . Actions | -11 -10 -10 -9 -8 -7 -7 -7 -6 -6 -6 -5 -4 -4 -4 -3 --------- Run | Scr Mat Min Mat Mat Fac Was Fac Fac Low Low Fac Fac Ext Cet Res Total 10722 | 121 411 236 455 883 111 455 65 900 2766 166 1238 1440 453 70 952 Wait 2895 | . 31 5 26 113 . . . . 1479 . 477 311 200 . 253 Move 6949 | 108 339 228 301 601 107 417 57 778 1231 151 614 1046 247 70 654 Hop 23 | . . . . . . . . . . . 2 6 . . 15 Pick Up 143 | 5 14 . 22 30 2 12 3 23 4 . 14 9 . . 5 Fast Attach 80 | 5 3 . 9 10 1 4 . 13 1 . 9 20 . . 5 Attach 81 | 2 . 2 6 14 1 2 . 10 5 3 28 2 1 . 5 Detach 28 | 1 1 . . 5 . 2 . 4 1 . 13 1 . . . Swap 19 | . . . 3 5 . . 1 . 5 . 1 4 . . . Drop 148 | . 4 . 26 27 . 18 3 29 1 1 16 22 . . 1 Fire 282 | . 19 . 62 71 . . . 39 31 11 46 . 3 . . Melee 54 | . . . . . . . . . 8 . 11 19 2 . 14 Ram . | . . . . . . . . . . . . . . . . Kick . | . . . . . . . . . . . . . . . . Crush 20 | . . 1 . 7 . . 1 4 . . 7 . . . . Escape Stasis . | . . . . . . . . . . . . . . . . Rewire . | . . . . . . . . . . . . . . . . Trap . | . . . . . . . . . . . . . . . . Miscellaneous . | . . . . . . . . . . . . . . . . Route ------- -11/Scrapyard -10/Materials -10/Mines -9/Materials -8/Materials -7/Factory -7/Waste -7/Factory -6/Factory -6/Lower Caves -6/Lower Caves -5/Factory (discovered 3 exits: *Fac x2 / [*Upp]) -4/Factory -4/Extension (discovered 2 exits: *Res / *Cet) -4/Cetus -3/Research History --------- Turn | Location | Event 2 | -11/Scrapyard | Met Revision 17 13 | -11/Scrapyard | Discovered new exit (range 14) 172 | -11/Scrapyard | Entered Materials 306 | -10/Materials | Build established: Mutant 497 | -10/Materials | Discovered new exit (range 7) 890 | -10/Materials | Entered Mines 891 | -10/Mines | Assembled infested the area 1228 | -10/Mines | Discovered new exit (range 10) 1261 | -10/Mines | Met a Derelict testing a Signal Generator 1343 | -10/Mines | Core integrity fell below 50% 1361 | -10/Mines | Core integrity fell below 20% 1362 | -10/Mines | Entered Materials 1362 | -9/Materials | Evolved 2 slots: Propulsion x2 1389 | -9/Materials | Lost 3 parts (2n1w) 2062 | -9/Materials | Discovered new exit (range 9) 2139 | -9/Materials | Entered another Materials area 2139 | -8/Materials | Evolved 2 slots: Propulsion x1, Utility x1 2593 | -8/Materials | Build established: Scavenger-Mutant 2630 | -8/Materials | Lost 4 parts (3n1w) 3527 | -8/Materials | Discovered new exit (range 10) 3567 | -8/Materials | Entered Factory 3567 | -7/Factory | Evolved 2 slots: Utility x2 3742 | -7/Factory | Sucked down chute 3742 | -7/Factory | Entered Waste 3743 | -7/Waste | Joined by Warlord forces that had cleared the area 3872 | -7/Waste | Build established: Hauler-Mutant 3907 | -7/Waste | Found Damper Plating 3938 | -7/Waste | Discovered new exit (range 14) 4440 | -7/Waste | Entered Factory 4440 | -7/Factory | Accompanied by 20 allies 4493 | -7/Factory | Discovered new exit (range 7) 4539 | -7/Factory | Entered another Factory area 4539 | -6/Factory | Accompanied by 20 allies 4539 | -6/Factory | Evolved 2 slots: Utility x2 4602 | -6/Factory | Garrison activated, responded to threat 4621 | -6/Factory | Spotted B-75 Beast 4657 | -6/Factory | Destroyed B-75 Beast 5844 | -6/Factory | Found Prototype Device 5844 | -6/Factory | Identified Exp. Terrain Scanner 5883 | -6/Factory | Discovered new exit (range 16) 6020 | -6/Factory | Entered Lower Caves 6022 | -6/Lower Caves | Attracted the attention of an 0b10 checkpoint 6068 | -6/Lower Caves | Learned location of 1 exit from Factory 6073 | -6/Lower Caves | Attracted the attention of an 0b10 base 6288 | -6/Lower Caves | Encountered a Warlord checkpoint 7950 | -6/Lower Caves | Attacked by a delusional Derelict stockpiling parts 9434 | -6/Lower Caves | Discovered new exit (range 24) 9638 | -6/Lower Caves | Entered another Lower Caves area 9873 | -6/Lower Caves | Discovered new exit (range 15) 9924 | -6/Lower Caves | Entered Factory 9924 | -5/Factory | Evolved 2 slots: Power x1, Propulsion x1 9925 | -5/Factory | Identified exit to Factory 10345 | -5/Factory | Lost 3 parts (3n) 10439 | -5/Factory | Lost 4 parts (1p1n1u1w) 10621 | -5/Factory | Lost 3 parts (1p1n1u) 10875 | -5/Factory | Discovered exit to Factory (range 16) 11020 | -5/Factory | Build established: Scavenger-Ninja 11111 | -5/Factory | Discovered new exit (range 23) 11285 | -5/Factory | Entered another Factory area 11285 | -4/Factory | Evolved 2 slots: Utility x2 11524 | -4/Factory | Found Prototype Processor 11524 | -4/Factory | Identified Exp. Signal Interpreter 11605 | -4/Factory | Build established: Infiltrator-Ninja 11971 | -4/Factory | Spotted B-86 Titan 12033 | -4/Factory | Discovered new exit (range 5) 12034 | -4/Factory | Identified exit to Extension 12034 | -4/Factory | Entered Extension 12169 | -4/Extension | Spotted B-86 Titan 12174 | -4/Extension | Spotted B-86 Titan 12206 | -4/Extension | Discovered new exit (range 16) 12207 | -4/Extension | Discovered new exit (range 15) 12278 | -4/Extension | Build established: Ninja 12316 | -4/Extension | Identified exit to Cetus 12317 | -4/Extension | Entered Cetus 12322 | -4/Cetus | Spotted Cetus Guard 12322 | -4/Cetus | Spotted Cetus Guard 12322 | -4/Cetus | Spotted Cetus Guard 12328 | -4/Cetus | Discovered new exit (range 16) 12337 | -4/Cetus | Identified exit to Research 12337 | -4/Cetus | Entered Research 12337 | -3/Research | Evolved 2 slots: Power x1, Utility x1 12644 | -3/Research | Spotted B-86 Titan 12774 | -3/Research | Spotted B-86 Titan 12809 | -3/Research | Core integrity fell below 50% 12850 | -3/Research | Lost 16 parts (2p8n4u2w) 12852 | -3/Research | Core integrity fell below 20% 12899 | -3/Research | Destroyed by G-67 Veteran with Electrolaser Last Messages --------------- Biomechanical Wings destroyed. Penetrated by Slug. Slug penetrates Wall. Penetrated by Slug. Slug penetrates S-43 Plague. Drone sends a signal. Acquired Q-thruster. Critical hit. Field Propulsion Array destroyed. Acquired Q-thruster. S-43 Plague destroyed. Penetrated by Slug. Acquired 15 matter. Slug penetrates Wall. Q-thruster destroyed. System corrupted: Energy discharge (-27). Exp. Coolant Injector destroyed. Slug penetrates Wall. Acquired Rnf. Antimatter Reactor. Acquired Field Propulsion Drive. Map ----- +----------------------------------------------------+ | # # # ""Y"" #? | | + / # """"" #? | | # # ##############? | | ??# # #?????????????? | | ????# # #?????????????? | | ?????# # #?????????????? | | ?????# # #?????????????? | | ###### # #?????????????? | | = # #?????????????? | | # ! #?????????????? | | # #?????????????? | | # #?????????????? | | ########?????????????? | | " " #????????????????????? | | "G" ########?????????????? | | " #?????????????? | | #?????????????? | | #?????????????? | | #?????????????? | | +############ #?????????????? | | ????????????# #????????###### | | ????????????# #????????# # | | ????????????# #????????# # | | ????????????# #????????#] # | | ????????????# ########## # | | ????????????# g @pp # | | ????????????##+###### #p # | | ???????????? ???# # # | | ?????????? ?+ # # | | ???????? ####### # | | ???????# """" #?????###### | | ???????# """" #??????????? | | ######## """" #??????????? | | # """" #??????????? | | # " #??????????? | | % # #??????????? | | # = #??????????? | | # """ """ #??????????? | | !#! ??"S""" #??????????? | | ]]] ###????????###??????????? | | ]]] #???????????????????????? | | ]] #???????????????????????? | | #???????????????????????? | | #???????????????????????? | | / #???????????????????????? | | #???????????????????????? | | #???????????????????????? | | #???????????????????????? | | ######/#???????????????????????? | | #?# #???????????????????????? | +----------------------------------------------------+ Best States ------------- Heat Dissipation 67 Coolant Potential 120 Energy Generation 34 Energy Capacity 385 Matter Stores 300 Matter Capacity 300 Sight Range 22 Robot Scan Range 20 Terrain Scan Range 30 Terrain Scan Density 110 ECM Strength 3 Jamming Range 16 Armor Coverage 1200 Resistance: EM 90 Propulsion Shielding 66 Utility Shielding 66 Weapon Shielding 66 Evasion (%) 76 Targeting Accuracy 8 Recoil Reduction 6 Item Schematics ----------------- None Robot Schematics ------------------ None Fabricated ------------ Nothing Alien Tech Used ----------------- None Achievements -------------- We Are Legion Challenges ------------ None Game ------ Seed DeepExperimentalBeam Manual? 0 Play Time 02:37:09 Cumulative 52.0 hours Start 2020.08.17 @ 17:50:31 End 2020.08.17 @ 20:55:03 Sessions 1 Manual Loads 0 Difficulty Rogue Special Mode None Game No. 65 Rogue 64 Adventurer 0 Explorer 1 Win Type - Total 0 Types 0/0/0/0/0/0/0 Lore% 25 Gallery% 42 Achievement% 30 Wizard Run 0 Options --------- ASCII 0 Keyboard 0 Movement Arrows Keybinds 0 Fullscreen 1 Font 16/Terminus Map View 76x50 Tactical HUD 0 Map Filters NONE Filters NONE Steam 1 RUN: 7e810cb4-79ed-4e9f-acb1-8dfe42c9fafe